bitfinex/quotes_ETHUSD_20250219
["timestamp","ask_amount","ask_price","bid_price","bid_amount"]
[1739973979356,24.0,2720.0,2719.9,11.94231459]
[1739973979859,24.0,2720.0,2719.9,11.16841459]
[1739973982796,24.0,2720.0,2719.9,10.90441459]
[1739973983100,24.0,2720.0,2719.9,11.16841459]
[1739973983779,24.0,2720.0,2719.9,14.92851459]
[1739973984909,23.04565429,2720.0,2719.9,14.92851459]
[1739973988504,23.04565429,2720.0,2719.9,14.66451459]
[1739973988717,23.04565429,2720.0,2719.9,14.92851459]
[1739973990679,6.46e-06,2720.0,2719.9,15.47851459]
[1739973990986,0.8331,2721.0,2720.9,3.67525]
[1739973991183,0.8331,2721.0,2720.9,4.64559893]
[1739973991408,0.8135,2721.2,2721.0,3.67509]
[1739973991710,0.8135,2721.2,2721.1,0.06594584]
[1739973994786,0.8135,2721.2,2721.1,3.74092584]
[1739973995100,0.8135,2721.2,2721.1,0.06594584]
[1739973995485,0.8135,2721.2,2721.1,3.74092584]
[1739973996428,0.0976,2721.3,2721.1,3.74092584]
[1739973996429,0.9021,2721.3,2721.1,3.74092584]
[1739973996803,0.9021,2721.3,2721.1,7.41583584]
[1739973996992,0.9021,2721.3,2721.2,3.67484]
[1739973997192,0.9021,2721.3,2721.2,3.74067562]
[1739973998335,0.9021,2721.3,2721.2,0.06583562]
[1739973998488,5.034465,2721.3,2721.2,0.06583562]
[1739973998692,0.8307,2721.2,2720.9,0.264]
[1739974001412,0.8307,2721.2,2720.9,3.93918]
[1739974001611,0.8307,2721.2,2720.9,0.264]
[1739974002454,4.50556,2721.2,2720.9,0.264]
[1739974003130,0.8307,2721.2,2720.9,0.264]
[1739974003900,0.8307,2721.2,2720.9,3.93924]
[1739974004092,0.8307,2721.2,2720.9,4.77971649]
[1739974004534,0.8307,2721.2,2720.9,8.45490649]
[1739974004947,0.8307,2721.2,2721.0,3.67511]
[1739974005151,0.8307,2721.2,2720.9,4.77971649]
[1739974006143,0.8307,2721.2,2720.9,1.10447649]
[1739974006343,0.8307,2721.2,2720.9,0.264]
[1739974007739,0.8307,2721.2,2720.9,3.93919]
[1739974007952,0.8307,2721.2,2721.0,0.03674757]
[1739974008318,0.8307,2721.2,2721.1,0.06546357]
[1739974009307,0.0976,2721.3,2721.1,0.06546357]
[1739974009652,0.0976,2721.3,2721.2,0.06535335]
[1739974010839,0.0976,2721.3,2721.2,3.74019335]
[1739974011054,0.0976,2721.3,2721.2,4.55693168]
[1739974011424,0.0976,2721.3,2721.2,0.88209168]
[1739974012522,0.9036,2721.3,2721.2,0.06535335]
[1739974012906,0.9036,2721.3,2720.9,3.93916]
[1739974013112,0.9036,2721.3,2721.2,0.06535335]
[1739974013323,0.9036,2721.3,2720.9,7.61434]
[1739974013525,0.9036,2721.3,2721.2,0.06535335]
[1739974013719,0.9036,2721.3,2721.0,3.67504]
[1739974014006,0.9036,2721.3,2721.1,0.06546357]
[1739974016037,0.9036,2721.3,2721.2,0.264]
[1739974016221,4.57837,2721.3,2721.2,0.32919967]
[1739974016628,0.9036,2721.3,2721.2,0.32919967]
[1739974017330,4.57831,2721.3,2721.2,0.32919967]
[1739974017911,0.9036,2721.3,2721.2,0.32919967]
[1739974019363,4.57831,2721.3,2721.2,0.06519967]
[1739974019656,0.7859,2721.2,2721.0,0.264]
[1739974019833,4.46076,2721.2,2721.1,0.06530989]
[1739974020645,0.7859,2721.2,2721.1,0.06530989]
[1739974022565,4.46074,2721.2,2721.1,0.06530989]
[1739974022762,0.7859,2721.2,2721.1,0.06530989]
[1739974023537,4.46074,2721.2,2721.1,0.06530989]
[1739974024151,5.307446,2721.2,2721.1,0.06530989]
[1739974024350,5.857446,2721.2,2721.1,0.06530989]
[1739974024564,3.67532,2720.9,2720.6,0.264]
[1739974024766,4.47621,2720.8,2720.6,0.264]
[1739974024977,4.47621,2720.8,2720.7,0.06363352]
[1739974025272,5.285563,2720.8,2720.7,0.06363352]
[1739974025570,0.8192,2720.5,2720.2,8.527]
[1739974026075,0.8192,2720.5,2720.2,8.263]
[1739974028053,4.49506,2720.5,2720.2,8.263]
[1739974028789,4.45446,2720.3,2720.2,8.263]
[1739974029083,0.7784,2720.3,2719.9,0.264]
[1739974029467,4.45452,2720.3,2719.9,0.264]
[1739974031057,0.7784,2720.3,2719.9,0.264]
[1739974031386,0.7784,2720.3,2719.8,3.67673]
[1739974031585,0.7784,2720.3,2719.8,4.61349719]
[1739974031888,0.7784,2720.3,2719.9,3.6766]
[1739974032095,0.7784,2720.3,2719.8,0.93676719]
[1739974032403,0.7882,2719.9,2719.7,1.0]
[1739974032558,4.46482,2719.9,2719.7,1.0]
[1739974032945,0.7882,2719.9,2719.7,1.0]
[1739974033444,4.46481,2719.9,2719.7,1.0]
[1739974034284,0.7882,2719.9,2719.7,1.0]
[1739974036244,4.46481,2719.9,2719.7,1.0]
[1739974036444,0.7882,2719.9,2719.7,1.0]
[1739974037505,4.46482,2719.9,2719.7,1.0]
[1739974037818,3.67674,2719.8,2719.7,1.0]
[1739974038180,0.7882,2719.9,2719.7,1.0]
[1739974038423,0.7882,2719.9,2719.7,1.04400184]
[1739974039783,4.46484,2719.9,2719.7,1.04400184]
[1739974040406,0.7882,2719.9,2719.7,1.04400184]
[1739974041794,4.46481,2719.9,2719.7,1.04400184]
[1739974042465,0.7882,2719.9,2719.7,1.04400184]
[1739974043495,3.67674,2719.8,2719.7,1.04400184]
[1739974043695,4.46481,2719.9,2719.7,1.04400184]
[1739974044010,0.7882,2719.9,2719.7,1.04400184]
[1739974045750,4.46481,2719.9,2719.7,1.04400184]
[1739974046035,0.7882,2719.9,2719.7,1.04400184]
[1739974046637,0.55,2719.9,2719.7,1.04400184]
[1739974046841,0.55,2719.9,2719.7,5.27028202]
[1739974047492,0.55,2720.0,2719.7,1.59343202]
[1739974047697,0.55,2720.0,2719.7,1.04400184]
[1739974048025,0.799,2720.1,2719.7,1.04400184]
[1739974048336,4.47534,2720.1,2719.7,1.04400184]
[1739974049218,0.799,2720.1,2719.7,1.04400184]
[1739974050049,0.55,2720.2,2719.9,3.67659]
[1739974050339,0.55,2720.2,2720.0,0.05275408]
[1739974050637,6.11537805,2720.3,2720.0,0.05275408]
[1739974051438,5.29007805,2720.3,2720.1,3.67633]
[1739974051641,5.29007805,2720.3,2720.2,0.74054441]
[1739974051945,5.29007805,2720.3,2720.2,0.05243288]
[1739974052405,5.29007805,2720.3,2720.1,0.264]
[1739974052622,5.29007805,2720.3,2720.2,0.0522442]
[1739974053366,0.55,2720.5,2720.2,0.0522442]
[1739974056272,0.55,2720.5,2720.2,3.7284042]
[1739974057043,9.71717805,2720.8,2720.3,4.46796]
[1739974057383,0.55,2720.7,2720.4,0.05155243]
[1739974057741,0.55,2720.5,2720.4,0.05155243]
[1739974057942,0.55,2720.5,2720.1,1.0887]
[1739974058141,0.55,2720.5,2720.4,0.05155243]
[1739974058390,0.55,2720.5,2720.2,3.67617]
[1739974058550,0.55,2720.5,2720.4,0.05155243]
[1739974058751,0.55,2720.5,2720.2,8.196372]
[1739974058979,0.55,2720.5,2720.4,0.05155243]
[1739974059276,0.55,2720.5,2720.3,3.67605]
[1739974059480,0.55,2720.5,2720.4,0.05155243]
[1739974059684,0.55,2720.6,2720.4,0.05155243]
[1739974060140,0.55,2720.6,2720.2,4.520312]
[1739974060487,0.55,2720.6,2720.5,0.05141208]
[1739974060640,0.55,2720.6,2720.2,3.67618]
[1739974061153,0.55,2720.6,2720.3,0.05169279]
[1739974061365,0.55,2720.6,2720.2,3.67618]
[1739974061550,0.55,2720.6,2720.4,0.05155243]
[1739974061988,4.22566,2720.6,2720.2,3.67618]
[1739974062184,4.22566,2720.6,2720.5,0.05141208]
[1739974062498,0.55,2720.6,2720.5,0.05141208]
[1739974062689,4.22571,2720.6,2720.5,0.05141208]
[1739974062889,0.55,2720.6,2720.2,3.67618]
[1739974063485,0.55,2720.6,2720.3,0.05169279]
[1739974063674,0.55,2720.6,2720.3,3.72773279]
[1739974063896,0.55,2720.6,2720.3,3.67604]
[1739974064202,0.7517,2720.8,2720.4,3.72745243]
[1739974064565,0.55,2720.7,2720.4,3.72745243]
[1739974064763,0.7517,2720.8,2720.6,3.67565]
[1739974064968,0.808,2721.0,2720.6,3.67565]
[1739974065279,0.55,2720.9,2720.7,0.05103036]
[1739974065475,3.808,2721.0,2720.7,0.05103036]
[1739974066006,0.808,2721.0,2720.7,0.05103036]
[1739974066365,0.55,2721.0,2720.7,0.05103036]
[1739974066595,0.55,2721.0,2720.7,0.5046284]
[1739974068306,4.22515,2721.0,2720.7,0.05103036]
[1739974068803,0.55,2721.0,2720.8,0.05089004]
[1739974069175,0.55,2721.0,2720.6,3.67565]
[1739974069380,4.22513,2721.0,2720.9,0.05074974]
[1739974069591,0.55,2721.0,2720.6,3.67564]
[1739974069906,0.55,2721.0,2720.9,0.05074974]
[1739974070113,0.55,2721.0,2720.6,3.67564]
[1739974070281,4.22517,2721.0,2720.5,4.48501]
[1739974070482,0.55,2721.0,2720.6,3.72661209]
[1739974072383,0.55,2721.0,2720.7,3.67551]
[1739974072706,0.55,2721.0,2720.7,3.72635177]
[1739974074889,0.55,2721.0,2720.7,0.05084177]
[1739974075215,4.22512,2721.0,2720.5,0.8093]
[1739974075419,4.22512,2721.0,2720.8,0.05070145]
[1739974075588,4.22512,2721.0,2720.5,4.48501]
[1739974075990,4.22512,2721.0,2720.6,0.05098209]
[1739974077412,7.90034,2721.0,2720.6,0.05098209]
[1739974077814,4.22512,2721.0,2720.6,0.05098209]
[1739974078316,7.90034,2721.0,2720.6,0.05098209]
[1739974078613,3.67525,2720.9,2720.6,0.05098209]
[1739974079818,4.22513,2721.0,2720.6,0.05098209]
[1739974080419,3.67533,2720.9,2720.6,0.05098209]
[1739974080579,3.67532,2720.9,2720.6,0.05098209]
[1739974080780,4.22514,2721.0,2720.6,0.05098209]
[1739974081011,6.06337805,2721.2,2720.6,0.05098209]
[1739974081217,0.0976,2721.3,2721.0,3.6751]
[1739974081377,0.0976,2721.3,2721.2,3.67484]
[1739974081817,0.0976,2721.3,2721.2,3.72475799]
[1739974082701,0.0976,2721.3,2721.2,3.7615025]
[1739974083030,0.0976,2721.3,2721.2,3.72475799]
[1739974085880,0.6476,2721.3,2721.2,0.04991799]
[1739974086338,1.3985,2721.3,2721.2,0.04991799]
[1739974087939,0.6476,2721.3,2721.2,0.04991799]
[1739974088234,0.0976,2721.3,2721.2,3.72475799]
[1739974088441,0.0976,2721.3,2721.2,4.56714979]
[1739974089004,0.0976,2721.3,2721.2,4.60389435]
[1739974090091,0.0976,2721.3,2721.2,4.56714979]
[1739974090200,0.0976,2721.3,2721.2,4.60389435]
[1739974091148,0.0976,2721.3,2721.2,4.56714979]
[1739974091301,0.0976,2721.3,2721.2,0.89230979]
[1739974091644,0.0976,2721.3,2721.2,0.04991799]
[1739974091844,0.0976,2721.3,2721.2,3.76150251]
[1739974092345,0.0976,2721.3,2721.2,3.72475799]
[1739974094846,0.0976,2721.3,2721.2,3.76150256]
[1739974095947,0.0976,2721.3,2721.2,3.72475799]
[1739974096308,0.0976,2721.3,2721.2,4.56714079]
[1739974101491,0.0976,2721.3,2721.2,0.04991799]
[1739974102285,0.6476,2721.3,2721.2,0.04991799]
[1739974103381,4.32231,2721.3,2721.2,0.04991799]
[1739974103583,0.6476,2721.3,2721.2,0.04991799]
[1739974105964,0.0976,2721.3,2721.2,3.72475799]
[1739974106168,0.0976,2721.3,2721.2,4.57275467]
[1739974111014,0.55,2721.7,2721.2,4.57275467]
[1739974111015,0.55,2721.7,2721.2,0.84799668]
[1739974111219,0.55,2721.7,2721.5,3.67441]
[1739974111590,0.55,2721.7,2721.6,0.06338496]
[1739974112731,0.55,2721.7,2721.4,3.67456]
[1739974112930,0.55,2721.7,2721.6,0.06338496]
[1739974113098,0.55,2721.7,2721.4,3.67456]
[1739974113099,0.55,2721.7,2721.5,0.06357778]
[1739974113297,0.55,2721.7,2721.6,0.06338496]
[1739974113629,0.55,2721.7,2721.5,3.67435]
[1739974113843,3.6732,2722.5,2721.6,3.73768496]
[1739974114007,0.7837,2722.1,2721.7,3.6741]
[1739974114207,0.55,2722.0,2721.7,3.73715331]
[1739974115198,0.8204,2722.3,2722.0,3.67376]
[1739974115426,3.67265,2722.9,2722.1,0.264]
[1739974115627,0.8204,2722.7,2722.2,3.67349]
[1739974115815,0.55,2722.6,2722.2,3.72834339]
[1739974116138,4.49323,2722.7,2722.2,3.72834339]
[1739974116298,0.55,2722.6,2722.2,0.05485339]
[1739974116499,0.8204,2722.7,2722.3,3.67335]
[1739974116754,0.8204,2722.7,2722.3,0.39922034]
[1739974116900,0.8274,2723.0,2722.4,7.40757463]
[1739974117097,0.8274,2723.0,2722.5,3.67307]
[1739974117304,0.8274,2723.0,2722.5,3.673]
[1739974117545,0.8274,2723.0,2722.6,0.06093926]
[1739974118043,0.55,2722.9,2722.6,0.06093926]
[1739974118341,3.0,2723.2,2722.1,0.264]
[1739974118342,0.55,2722.5,2722.1,0.264]
[1739974118846,0.817,2722.8,2722.3,3.67326]
[1739974119015,0.55,2722.7,2722.3,3.67326]
[1739974119204,3.67311,2722.5,2722.4,0.264]
[1739974119538,1.339599,2722.5,2722.4,0.264]
[1739974119850,5.012689,2722.5,2722.4,0.264]
[1739974120032,5.842189,2722.5,2722.4,0.264]
[1739974120612,2.169099,2722.5,2722.4,0.264]
[1739974121019,5.842189,2722.5,2722.4,0.264]
[1739974121949,4.22339,2722.3,2722.2,0.264]
[1739974122117,0.55,2722.2,2721.8,0.7588]
[1739974122318,4.6249479,2722.3,2721.6,5.2616]
[1739974122319,4.22376,2722.1,2721.6,0.8015]
[1739974122655,1.3549,2722.0,2721.9,0.264]
[1739974123319,5.02866,2722.0,2721.9,0.264]
[1739974123846,5.02866,2722.0,2721.9,0.345731]
[1739974124058,2.22513,2722.0,2721.4,0.72548318]
[1739974124260,0.55,2721.6,2721.5,0.264]
[1739974124631,4.2243,2721.6,2721.5,0.264]
[1739974126120,0.55,2721.6,2721.5,0.264]
[1739974128226,0.55,2721.6,2721.5,0.33578255]
[1739974128761,0.55,2721.6,2721.5,1.09048255]
[1739974131645,0.55,2721.6,2721.5,0.33578255]
[1739974132021,4.2243,2721.6,2721.5,0.33578255]
[1739974132721,4.2243,2721.6,2721.5,0.07178255]
[1739974132922,5.832134,2721.6,2721.5,0.07178255]
[1739974133148,0.55,2721.5,2721.2,0.264]
[1739974133819,4.22445,2721.5,2721.2,0.264]
[1739974134262,4.22481,2721.3,2721.0,0.7869]
[1739974134464,4.22481,2721.3,2720.8,5.2616]
[1739974134623,4.22481,2721.3,2721.0,0.264]
[1739974135134,0.55,2721.3,2720.8,5.2616]
[1739974135459,0.55,2721.1,2720.9,0.264]
[1739974138066,4.22471,2721.3,2720.9,0.264]
[1739974139164,0.55,2721.1,2720.9,0.264]
[1739974140466,0.55,2720.9,2720.7,0.7753]
[1739974140629,0.55,2720.9,2720.8,0.264]
[1739974140831,0.55,2721.0,2720.8,0.264]
[1739974141537,0.7937,2720.9,2720.8,0.264]
[1739974141725,0.55,2720.8,2720.3,12.74254]
[1739974141931,0.55,2720.6,2720.4,0.264]
[1739974142236,0.55,2720.4,2720.3,8.525]
[1739974143262,0.55,2720.4,2720.3,8.32642067]
[1739974144019,4.22593,2720.4,2720.3,8.32642067]
[1739974144753,0.55,2720.4,2720.3,8.32642067]
[1739974146885,8.14821,2720.7,2720.3,8.32642067]
[1739974147187,3.67566,2720.6,2720.3,8.32642067]
[1739974147551,4.22586,2720.5,2720.3,8.32642067]
[1739974147885,0.55,2720.5,2720.3,8.32642067]
[1739974149351,0.55,2720.4,2720.3,8.32642067]
[1739974149889,4.2257,2720.6,2720.3,8.32642067]
[1739974150184,0.7752,2721.0,2720.4,0.8256]
[1739974150386,0.7752,2721.0,2720.5,3.67569]
[1739974150571,0.7752,2721.0,2720.5,3.73552321]
[1739974150884,0.55,2720.9,2720.5,3.73552321]
[1739974151088,0.55,2720.9,2720.6,3.67558]
[1739974151298,3.67421,2721.7,2720.6,3.67558]
[1739974151299,4.45064,2721.4,2720.7,3.67542]
[1739974151453,0.55,2721.2,2720.7,0.32349018]
[1739974151649,0.55,2721.2,2720.7,3.99900018]
[1739974152384,4.45057,2721.4,2720.8,3.67529]
[1739974152649,4.45057,2721.4,2721.0,3.67502]
[1739974152650,0.776,2721.4,2721.0,3.67502]
[1739974152845,3.67411,2721.8,2721.1,3.67494]
[1739974153045,0.785,2722.0,2721.3,3.67463]
[1739974153354,0.785,2722.0,2721.4,4.42697]
[1739974153553,1.23087,2722.0,2721.4,4.49207389]
[1739974153773,1.23087,2722.0,2721.4,0.81750389]
[1739974154107,0.55,2721.8,2721.4,0.81750389]
[1739974154412,0.55,2721.9,2721.4,4.49203389]
[1739974154910,0.55,2721.9,2721.5,0.264]
[1739974155107,0.55,2721.9,2721.5,0.32889253]
[1739974155480,4.22391,2721.9,2721.5,0.32889253]
[1739974156006,0.55,2721.7,2721.5,0.32889253]
[1739974156201,4.2243,2721.6,2721.5,0.32889253]
[1739974156405,4.2243,2721.6,2721.5,0.06489253]
[1739974156713,0.55,2721.5,2721.2,0.264]
[1739974156887,0.55,2721.3,2721.2,0.264]
[1739974157399,0.55,2721.4,2721.2,0.264]
[1739974158306,0.55,2721.4,2721.3,0.06488938]
[1739974158469,0.55,2721.4,2721.2,0.264]
[1739974158673,0.55,2721.4,2721.3,0.06488938]
[1739974158987,0.55,2721.4,2721.2,0.264]
[1739974159195,4.49598,2721.6,2721.3,0.06488938]
[1739974159506,5.312991,2721.6,2721.2,0.264]
[1739974159690,0.55,2721.5,2721.4,0.06469653]
[1739974159893,0.55,2721.5,2721.2,0.264]
[1739974160088,0.55,2721.5,2721.4,0.06469653]
[1739974160292,0.55,2721.5,2721.2,0.264]
[1739974160592,0.55,2721.5,2721.4,0.06469653]
[1739974160793,0.55,2721.5,2721.3,0.06488938]
[1739974160999,0.55,2721.5,2721.4,0.06469653]
[1739974161397,0.55,2721.5,2721.3,3.6747]
[1739974161616,0.55,2721.5,2721.4,0.06469653]
[1739974162114,0.55,2721.7,2721.4,0.06469653]
[1739974162529,0.55,2721.7,2721.5,3.67438]
[1739974162733,0.7856,2722.2,2721.5,8.12972]
[1739974162934,3.6737,2722.1,2721.6,0.06353306]
[1739974163136,4.22381,2722.0,2721.6,0.06353306]
[1739974163490,3.6737,2722.1,2721.6,0.06353306]
[1739974164137,0.55,2722.0,2721.6,0.06353306]
[1739974164817,4.22384,2722.0,2721.6,0.06353306]
[1739974166226,0.55,2721.9,2721.6,0.06353306]
[1739974166431,0.55,2722.0,2721.6,0.06353306]
[1739974166633,0.7757,2722.5,2721.9,3.67384]
[1739974167006,0.7757,2722.5,2721.8,3.71076638]
[1739974167007,3.67325,2722.4,2722.0,0.32653053]
[1739974167223,0.55,2722.3,2722.0,0.32653053]
[1739974167423,3.67359,2722.2,2722.0,0.32653053]
[1739974167788,5.01053,2722.1,2722.0,0.06253053]
[1739974168009,0.55,2722.0,2721.7,0.17773053]
[1739974169237,4.22379,2722.0,2721.7,0.17773053]
[1739974169437,4.22379,2722.0,2721.5,0.7753]
[1739974170000,0.55,2721.8,2721.4,0.264]
[1739974170326,4.22405,2721.8,2721.3,1.0739]
[1739974170523,3.67379,2722.0,2721.4,3.67447]
[1739974170524,0.55,2721.9,2721.4,3.67447]
[1739974171038,0.55,2721.9,2721.3,1.0739]
[1739974171039,0.55,2721.6,2721.3,1.0739]
[1739974171200,0.55,2721.6,2721.3,0.264]
[1739974171400,0.55,2721.6,2721.3,3.9387]
[1739974172516,0.55,2721.8,2721.4,3.67456]
[1739974173634,3.6742,2721.7,2721.3,0.264]
[1739974173842,0.55,2721.6,2721.3,0.264]
[1739974174002,0.55,2721.8,2721.3,0.264]
[1739974174205,4.22412,2721.8,2721.3,3.93868]
[1739974174832,0.55,2721.6,2721.3,3.93869]
[1739974175341,0.55,2721.8,2721.3,3.93869]
[1739974175501,0.55,2721.8,2721.3,0.264]
[1739974175932,0.55,2721.4,2721.3,0.264]
[1739974176234,0.55,2721.6,2721.0,0.264]
[1739974176437,4.22467,2721.4,2721.0,0.264]
[1739974176654,0.7557,2721.3,2721.0,0.264]
[1739974177530,4.43043,2721.3,2720.9,1.0374]
[1739974177734,0.55,2721.2,2720.9,1.0374]
[1739974177909,0.55,2721.2,2720.9,0.12052444]
[1739974178114,1.415522,2721.2,2720.4,0.8278]
[1739974178350,4.22485,2721.2,2720.9,0.12052444]
[1739974178647,4.22485,2721.2,2720.4,5.22410889]
[1739974178648,0.55,2721.0,2720.4,5.22410889]
[1739974178859,0.55,2720.8,2720.5,0.264]
[1739974179019,0.55,2720.8,2720.4,4.54819889]
[1739974179438,0.55,2720.8,2720.4,1.54819889]
[1739974179716,0.55,2720.6,2720.3,8.525]
[1739974179909,0.55,2720.6,2720.3,8.261]
[1739974180924,0.55,2720.7,2720.3,8.261]
[1739974181129,0.55,2720.7,2720.3,11.93704]
[1739974181329,0.7776,2720.9,2720.3,11.93704]
[1739974181553,0.55,2720.8,2720.3,11.93704]
[1739974181756,0.55,2720.8,2720.3,8.261]
[1739974181915,4.2254,2720.8,2720.3,8.261]
[1739974182118,0.55,2720.8,2720.3,11.93705]
[1739974182954,0.55,2720.8,2720.3,11.93695]
[1739974184061,0.55,2720.8,2720.4,3.67584]
[1739974186062,4.21912,2720.8,2720.3,8.261]
[1739974186244,7.89461,2720.8,2720.3,8.261]
[1739974186556,4.21912,2720.8,2720.3,11.93705]
[1739974186773,0.54373,2720.8,2720.4,3.6759]
[1739974186957,0.54373,2720.8,2720.3,8.261]
[1739974187144,4.21912,2720.8,2720.3,8.261]
[1739974187467,5.03708149,2720.8,2720.3,8.261]
[1739974187846,8.71260149,2720.8,2720.3,8.261]
[1739974188046,3.67554,2720.7,2720.3,8.261]
[1739974188969,0.55,2720.6,2720.3,8.261]
[1739974189168,5.03093,2720.4,2720.3,8.261]
[1739974190977,4.22614,2720.3,2719.8,4.0758]
[1739974191333,3.67622,2720.2,2719.8,1.0758]
[1739974191570,3.67622,2720.2,2719.8,0.264]
[1739974192175,7.35251,2720.2,2719.7,1.0]
[1739974192331,3.67622,2720.2,2719.7,1.264]
[1739974193931,0.55,2720.1,2719.7,1.264]
[1739974194132,4.22635,2720.1,2719.7,1.264]
[1739974194332,4.22635,2720.1,2719.7,1.0]
[1739974195279,0.7751,2720.0,2719.7,1.0]
[1739974196973,0.7751,2720.0,2719.7,4.67681]
[1739974197348,0.7751,2720.0,2719.7,1.0]
[1739974197946,0.55,2719.9,2719.7,1.0]
[1739974198635,0.55,2719.9,2719.7,4.67683]
[1739974199786,0.55,2719.9,2719.7,5.3250682]
[1739974199961,0.55,2720.1,2719.7,5.3250982]
[1739974200372,4.22639,2720.1,2719.7,1.0]
[1739974200590,4.22634,2720.1,2719.7,1.0]
[1739974201049,4.22634,2720.1,2719.7,4.67687]
[1739974201050,0.55,2720.1,2719.7,4.67687]
[1739974201887,4.22637,2720.1,2719.7,1.0]
[1739974202184,0.55,2720.1,2719.7,1.0]
[1739974202391,1.3564,2719.8,2719.7,1.0]
[1739974203182,5.03314,2719.8,2719.7,1.0]
[1739974203485,0.55,2719.8,2719.7,1.0]
[1739974205649,0.7636,2720.3,2719.7,5.45167]
[1739974205958,4.43976,2720.3,2719.7,5.45167]
[1739974206169,0.55,2720.2,2719.7,5.45167]
[1739974206699,4.22624,2720.2,2719.7,5.45167]
[1739974207104,4.22624,2720.2,2719.7,1.7748]
[1739974207105,0.55,2720.0,2719.7,1.7748]
[1739974207763,0.55,2720.0,2719.7,5.45167]
[1739974210167,0.55,2720.2,2719.8,3.67673]
[1739974210366,0.55,2720.2,2719.9,3.67659]
[1739974210777,0.55,2720.2,2719.8,3.71349367]
[1739974210984,0.55,2720.2,2719.8,3.67673]
[1739974211187,0.55,2720.2,2719.8,3.71349366]
[1739974211508,0.55,2720.2,2719.8,3.67673]
[1739974211721,0.55,2720.2,2719.8,4.58957]
[1739974212010,0.55,2720.2,2719.8,4.62633372]
[1739974212577,0.55,2720.2,2719.8,4.58957]
[1739974213098,0.55,2720.2,2719.9,3.67658]
[1739974213816,0.7846,2720.5,2719.9,0.03676378]
[1739974213977,0.7846,2720.7,2720.1,0.7715]
[1739974214172,4.45987,2720.9,2720.3,3.67606]
[1739974214816,0.7846,2720.9,2720.3,3.67597]
[1739974215126,0.55,2720.8,2720.4,3.67593]
[1739974215276,0.55,2720.8,2720.3,3.67597]
[1739974215476,4.22548,2720.8,2720.3,3.67597]
[1739974215987,4.22559,2720.7,2720.1,0.7715]
[1739974216176,0.55,2720.5,2720.2,0.264]
[1739974216371,1.3386,2720.3,2720.2,0.264]
[1739974217608,3.67566,2720.6,2720.2,0.264]
[1739974217609,1.3386,2720.6,2720.2,3.9402]
[1739974218324,1.657134,2720.8,2720.4,3.6759]
[1739974218472,5.332614,2720.8,2720.2,3.94011]
[1739974218679,0.55,2720.6,2720.2,0.264]
[1739974219197,0.55,2720.7,2720.3,3.67605]
[1739974219795,0.55,2720.7,2720.4,3.67592]
[1739974219996,0.55,2720.7,2720.5,3.67571]
[1739974220281,0.55,2720.9,2720.5,3.67571]
[1739974221422,0.55,2720.9,2720.6,3.67564]
[1739974222126,0.55,2720.9,2720.5,0.7613]
[1739974222422,4.22528,2720.9,2720.3,0.7823]
[1739974222723,0.55,2720.9,2720.3,5.00263204]
[1739974222888,3.67542,2720.8,2720.3,1.32657204]
[1739974223093,0.55,2720.7,2720.3,0.7823]
[1739974224029,0.55,2720.7,2720.3,4.45828]
[1739974224444,0.55,2720.8,2720.3,0.7823]
[1739974224598,0.55,2720.8,2720.4,3.67581]
[1739974225202,0.55,2720.9,2720.3,0.7823]
[1739974225542,1.34,2720.6,2720.3,0.264]
[1739974227927,5.01568,2720.6,2720.3,0.264]
[1739974228114,1.34,2720.6,2720.3,0.264]
[1739974228740,1.34,2720.6,2720.3,3.94002]
[1739974231535,1.34,2720.6,2720.4,3.67583]
[1739974231736,0.55,2720.7,2720.4,3.67583]
[1739974231948,0.55,2720.7,2720.3,3.94005]
[1739974232329,0.55,2720.7,2720.3,7.61602]
[1739974232528,0.55,2720.7,2720.4,0.05242637]
[1739974232715,0.8217,2721.1,2720.6,3.67565]
[1739974232893,0.449661,2721.0,2720.6,3.67565]
[1739974233102,0.449661,2721.0,2720.7,0.05288543]
[1739974233103,3.67526,2720.9,2720.7,0.05288543]
[1739974233393,3.67526,2720.9,2720.4,0.7939]
[1739974233599,5.02031,2720.8,2720.3,0.264]
[1739974233824,1.3449,2720.8,2720.3,0.264]
[1739974234146,1.3449,2720.8,2720.4,3.67591]
[1739974234507,1.3449,2720.8,2720.3,3.93998]
[1739974234703,1.3449,2720.8,2720.4,3.67585]
[1739974236037,1.3449,2720.8,2720.5,3.67576]
[1739974236412,1.3449,2720.8,2720.5,3.67577]
[1739974236739,0.55,2720.9,2720.6,3.67565]
[1739974237614,0.55,2720.9,2720.7,3.67545]
[1739974238244,0.55,2720.9,2720.7,3.67552]
[1739974239037,0.55,2720.9,2720.6,3.72277]
[1739974239915,0.55,2720.9,2720.6,7.39837]
[1739974240115,0.55,2720.9,2720.6,0.0472]
[1739974241323,4.22527,2720.9,2720.6,0.0472]
[1739974241523,0.55,2720.7,2720.6,0.0472]
[1739974242416,4.2213631,2720.9,2720.6,0.0472]
[1739974242417,1.0960931,2720.9,2720.6,0.0472]
[1739974243358,4.7713531,2720.9,2720.6,0.0472]
[1739974243816,1.0960931,2720.9,2720.6,3.72285]
[1739974244016,0.55,2720.9,2720.6,3.72285]
[1739974246868,0.55,2720.9,2720.7,3.67549]